fUSD/lending_fUSD_20240831
["ID","MTS","AMOUNT","RATE_DAILY","PERIOD"]
[336738279,1725095230587,-500.0,0.00039452,120]
[336738280,1725095230625,-507.63,0.00039452,120]
[336738281,1725095230662,-500.0,0.00039452,120]
[336738282,1725095230697,-1116.05,0.00039452,120]
[336738283,1725095230733,-500.0,0.00039452,120]
[336738284,1725095230770,-1302.41,0.00039452,120]
[336738285,1725095230806,-500.0,0.00039452,120]
[336738286,1725095230841,-923.19,0.00039452,120]
[336738287,1725095230875,-500.0,0.00039452,120]
[336738288,1725095230908,-500.0,0.00039452,120]
[336738289,1725095230942,-577.63578296,0.00039452,120]
[336738290,1725095230975,-8312.25,0.00039452,120]
[336738291,1725095231007,-2675.85,0.00039452,120]
[336738292,1725095231043,-500.0,0.00039452,120]
[336738293,1725095231078,-500.0,0.00039452,120]
[336738294,1725095231116,-1665.75,0.00039452,120]
[336738295,1725095231152,-942.12,0.00039452,120]
[336738296,1725095231189,-5129.59,0.00039452,120]
[336738297,1725095231227,-3247.83,0.00039452,120]
[336738298,1725095231262,-500.0,0.00039452,120]
[336738299,1725095231563,-2015.1,0.00039452,120]
[336738300,1725095231603,-500.0,0.00039452,120]
[336738301,1725095231639,-500.0,0.00039452,120]
[336738302,1725095231674,-500.0,0.00039452,120]
[336738303,1725095231710,-1000.31,0.00039452,120]
[336738304,1725095231748,-500.0,0.00039452,120]
[336738305,1725095231785,-3449.15,0.00039452,120]
[336738306,1725095231820,-500.0,0.00039452,120]
[336738307,1725095231857,-500.0,0.00039452,120]
[336738308,1725095231897,-4068.29,0.00039452,120]
[336738309,1725095231934,-895.39,0.00039452,120]
[336738310,1725095231971,-11552.84,0.00039452,120]
[336738311,1725095232006,-1205.57,0.00039452,120]
[336738312,1725095232042,-1246.58,0.00039452,120]
[336738313,1725095232080,-3120.34,0.00039452,120]
[336738314,1725095232119,-602.93,0.00039452,120]
[336738315,1725095232155,-1619.57,0.00039452,120]
[336738316,1725095232190,-3958.42,0.00039452,120]
[336738317,1725095232230,-523.71,0.00039452,120]
[336738318,1725095232265,-577.35,0.00039452,120]
[336738319,1725095232301,-23284.65,0.00039452,120]
[336738320,1725095232335,-531.75186761,0.00039452,120]
[336738321,1725095232368,-500.0,0.00039452,120]
[336738322,1725095232404,-628.05,0.00039452,120]
[336738323,1725095232444,-3149.38,0.00039452,120]
[336738324,1725095232480,-4199.79,0.00039452,120]
[336738325,1725095232516,-525.64,0.00039452,120]
[336738326,1725095232552,-500.0,0.00039452,120]
[336738327,1725095232589,-500.0,0.00039452,120]
[336738328,1725095232623,-500.0,0.00039452,120]
[336738329,1725095232658,-2061.96,0.00039452,120]
[336738330,1725095232693,-2848.13,0.00039452,120]
[336738331,1725095232727,-556.09,0.00039452,120]
[336738332,1725095232762,-500.0,0.00039452,120]
[336738333,1725095232797,-1770.95,0.00039452,120]
[336738334,1725095232831,-500.0,0.00039452,120]
[336738335,1725095232866,-2969.11,0.00039452,120]
[336738336,1725095232901,-818.9,0.00039452,120]
[336738337,1725095232937,-1130.01,0.00039452,120]
[336738338,1725095232974,-4462.15,0.00039452,120]
[336738339,1725095233007,-1535.29,0.00039452,120]
[336738340,1725095233041,-668.3,0.00039452,120]
[336738341,1725095233074,-500.0,0.00039452,120]
[336738342,1725095233110,-500.0,0.00039452,120]
[336738344,1725095233144,-500.0,0.00039452,120]
[336738346,1725095233177,-500.0,0.00039452,120]
[336738349,1725095233210,-500.0,0.00039452,120]
[336738351,1725095233248,-768.71,0.00039452,120]
[336738352,1725095233283,-643.37,0.00039452,120]
[336738353,1725095233319,-3633.76,0.00039452,120]
[336738354,1725095233354,-500.0,0.00039452,120]
[336738355,1725095233388,-895.7,0.00039452,120]
[336738356,1725095233422,-500.0,0.00039452,120]
[336738357,1725095233457,-856.48,0.00039452,120]
[336738358,1725095233492,-1174.72,0.00039452,120]
[336738359,1725095233527,-500.0,0.00039452,120]
[336738360,1725095233565,-6112.91,0.00039452,120]
[336738361,1725095233602,-1112.91,0.00039452,120]
[336738362,1725095233639,-200.21475858,0.00039452,120]
[336738363,1725095233675,-2966.4,0.00039529,74]
[336738364,1725095233711,-1000.0,0.000396,120]
[336738365,1725095233747,-1000.0,0.000396,120]
[336738366,1725095233784,-940.6086197,0.000396,120]
[336738367,1725095233821,-868.68,0.00039726,120]
[336738368,1725095233859,-868.68,0.00039726,120]
[336738369,1725095233897,-868.68,0.00039726,120]
[336738370,1725095233934,-150.0,0.00039748,120]
[336738371,1725095233973,-150.0,0.0003986,120]
[336738372,1725095234008,-464.27,0.000399,120]
[336738373,1725095234045,-2661.87610547,0.00039999,120]
[336738374,1725095234086,-50000.0,0.0004,40]
[336738375,1725095234123,-200.0,0.0004,120]
[336738376,1725095234231,-30000.0,0.0004,120]
[336738377,1725095234269,-30000.0,0.0004,120]
[336738378,1725095234304,-30000.0,0.0004,120]
[336738379,1725095234338,-30000.0,0.0004,120]
[336738380,1725095234372,-30000.0,0.0004,120]
[336738381,1725095234406,-30000.0,0.0004,120]
[336738382,1725095234441,-30000.0,0.0004,120]
[336738383,1725095234477,-30000.0,0.0004,120]
[336738384,1725095234513,-30000.0,0.0004,120]
[336738385,1725095234549,-30000.0,0.0004,120]
[336738386,1725095234586,-30000.0,0.0004,120]
[336738387,1725095234623,-30000.0,0.0004,120]
[336738388,1725095234659,-16569.26430485,0.0004,120]
[336738389,1725095234697,-1000000.0,0.0004,120]
[336738390,1725095234732,-517.63027872,0.0004,120]
[336738391,1725095234767,-1407.16,0.0004,120]
[336738392,1725095234801,-500.0,0.0004,120]
[336738393,1725095234835,-500.0,0.0004,120]
[336738394,1725095234871,-500.0,0.0004,120]
[336738395,1725095234908,-500.0,0.0004,120]
[336738396,1725095234946,-1467.59,0.0004,120]
[336738397,1725095234982,-238.63268657,0.0004,120]
[336738398,1725095235019,-500.0,0.0004,120]
[336738399,1725095235056,-500.0,0.0004,120]
[336738400,1725095235096,-842.04,0.0004,120]
[336738401,1725095235135,-1473.69,0.0004,120]
[336738402,1725095235176,-500.0,0.0004,120]
[336738403,1725095235215,-500.0,0.0004,120]
[336738404,1725095235261,-500.0,0.0004,120]
[336738405,1725095235297,-500.0,0.0004,120]
[336738406,1725095235334,-500.0,0.0004,120]
[336738407,1725095235371,-979.53,0.0004,120]
[336738408,1725095235409,-540.01,0.0004,120]
[336738409,1725095235446,-600.0,0.0004,120]
[336738410,1725095235485,-1167.72,0.0004,120]
[336738411,1725095235522,-500.0,0.0004,120]
[336738412,1725095235560,-500.0,0.0004,120]
[336738413,1725095235600,-500.0,0.0004,120]
[336738414,1725095235639,-911.85,0.0004,120]
[336738415,1725095235676,-500.0,0.0004,120]
[336738416,1725095235714,-500.0,0.0004,120]
[336738417,1725095235752,-679.36,0.0004,120]
[336738418,1725095235791,-500.0,0.0004,120]
[336738419,1725095235829,-500.0,0.0004,120]
[336738420,1725095235866,-376.37264401,0.0004,120]
[336738421,1725095235902,-500.0,0.0004,120]
[336738422,1725095235939,-1545.2,0.0004,120]
[336738423,1725095235973,-500.0,0.0004,120]
[336738424,1725095236007,-655.76,0.0004,120]
[336738425,1725095236040,-1118.32,0.0004,120]
[336738426,1725095236074,-500.0,0.0004,120]
[336738427,1725095236108,-1631.57,0.0004,120]
[336738428,1725095236143,-824.0,0.0004,120]
[336738429,1725095236176,-756.83,0.0004,120]
[336738430,1725095236209,-500.0,0.0004,120]
[336738431,1725095236246,-991.8,0.0004,120]
[336738432,1725095236281,-1259.56,0.0004,120]
[336738433,1725095236318,-500.0,0.0004,120]
[336738434,1725095236353,-840.83,0.0004,120]
[336738435,1725095236388,-500.0,0.0004,120]
[336738436,1725095236421,-500.0,0.0004,120]
[336738437,1725095236454,-1121.56,0.0004,120]
[336738438,1725095236488,-1216.46,0.0004,120]
[336738439,1725095236526,-500.0,0.0004,120]
[336738440,1725095236562,-747.34,0.0004,120]
[336738441,1725095236599,-500.0,0.0004,120]
[336738442,1725095236637,-500.0,0.0004,120]
[336738443,1725095236673,-500.0,0.0004,120]
[336738444,1725095236708,-742.95,0.0004,120]
[336738445,1725095236744,-514.16,0.0004,120]
[336738446,1725095236779,-1104.96,0.0004,120]
[336738447,1725095236816,-887.03,0.0004,120]
[336738448,1725095236854,-500.0,0.0004,120]
[336738449,1725095236888,-500.0,0.0004,120]
[336738450,1725095236922,-965.66,0.0004,120]
[336738451,1725095236957,-953.7,0.0004,120]
[336738452,1725095236992,-633.15,0.0004,120]
[336738453,1725095237026,-500.0,0.0004,120]
[336738454,1725095237061,-717.28,0.0004,120]
[336738455,1725095237101,-500.0,0.0004,120]
[336738456,1725095237139,-749.88,0.0004,120]
[336738457,1725095237176,-688.57,0.0004,120]
[336738458,1725095237210,-647.63,0.0004,120]
[336738459,1725095237247,-384.10952656,0.0004,120]
[336738460,1725095237280,-500.0,0.0004,120]
[336738461,1725095237313,-500.0,0.0004,120]
[336738462,1725095237346,-500.0,0.0004,120]
[336738463,1725095237378,-618.36,0.0004,120]
[336738464,1725095237413,-520.93,0.0004,120]
[336738465,1725095237449,-1005.62,0.0004,120]
[336738466,1725095237484,-1201.81,0.0004,120]
[336738467,1725095237518,-1032.12,0.0004,120]
[336738468,1725095237552,-500.0,0.0004,120]
[336738469,1725095237588,-822.77,0.0004,120]
[336738470,1725095237624,-500.0,0.0004,120]
[336738471,1725095237659,-500.0,0.0004,120]
[336738472,1725095237695,-500.0,0.0004,120]
[336738473,1725095237729,-500.0,0.0004,120]
[336738474,1725095237762,-500.0,0.0004,120]
[336738475,1725095237794,-629.34,0.0004,120]
[336738476,1725095237839,-891.7,0.0004,120]
[336738477,1725095237871,-500.0,0.0004,120]
[336738478,1725095237904,-690.68,0.0004,120]
[336738479,1725095237936,-500.0,0.0004,120]
[336738480,1725095237968,-500.0,0.0004,120]
[336738481,1725095238134,-537.07,0.0004,120]
[336738482,1725095238172,-500.0,0.0004,120]
[336738483,1725095238213,-747.01,0.0004,120]
[336738484,1725095238258,-1211.55,0.0004,120]
[336738485,1725095238299,-500.0,0.0004,120]
[336738486,1725095238340,-1331.69,0.0004,120]
[336738487,1725095238379,-495.76519623,0.0004,120]
[336738488,1725095238418,-500.0,0.0004,120]
[336738489,1725095238455,-500.0,0.0004,120]
[336738490,1725095238491,-500.0,0.0004,120]
[336738491,1725095238531,-500.0,0.0004,120]
[336738492,1725095238575,-794.03,0.0004,120]
[336738493,1725095238612,-500.0,0.0004,120]
[336738494,1725095238649,-513.448817,0.0004,120]
[336738495,1725095238686,-500.0,0.0004,120]
[336738496,1725095238723,-500.0,0.0004,120]
[336738497,1725095238760,-500.0,0.0004,120]
[336738498,1725095238795,-500.0,0.0004,120]
[336738499,1725095238832,-555.24,0.0004,120]
[336738500,1725095238868,-710.71,0.0004,120]
[336738501,1725095238903,-1225.12,0.0004,120]
[336738502,1725095238939,-500.0,0.0004,120]
[336738503,1725095238973,-557.74,0.0004,120]
[336738504,1725095239008,-1907.35,0.0004,120]
[336738505,1725095239046,-500.0,0.0004,120]
[336738506,1725095239081,-745.66,0.0004,120]
[336738507,1725095239118,-500.0,0.0004,120]
[336738508,1725095239154,-500.0,0.0004,120]
[336738509,1725095239190,-500.0,0.0004,120]
[336738510,1725095239229,-500.0,0.0004,120]
[336738511,1725095239266,-2051.45,0.0004,120]
[336738512,1725095239303,-500.0,0.0004,120]
[336738513,1725095239341,-994.45,0.0004,120]
[336738514,1725095239379,-962.34,0.0004,120]
[336738515,1725095239416,-500.0,0.0004,120]
[336738516,1725095239456,-500.0,0.0004,120]
[336738517,1725095239496,-1123.23,0.0004,120]
[336738518,1725095239537,-500.0,0.0004,120]
[336738519,1725095239578,-500.0,0.0004,120]
[336738520,1725095239618,-500.0,0.0004,120]
[336738521,1725095239661,-500.0,0.0004,120]
[336738522,1725095239705,-500.0,0.0004,120]
[336738523,1725095239750,-500.0,0.0004,120]
[336738524,1725095239792,-1180.05,0.0004,120]
[336738525,1725095239833,-743.34,0.0004,120]
[336738526,1725095239872,-500.0,0.0004,120]
[336738527,1725095239912,-762.64,0.0004,120]
[336738528,1725095239952,-500.0,0.0004,120]
[336738529,1725095239992,-500.0,0.0004,120]
[336738530,1725095240036,-502.32,0.0004,120]
[336738531,1725095240075,-1156.19,0.0004,120]
[336738532,1725095240116,-500.0,0.0004,120]
[336738533,1725095240155,-500.0,0.0004,120]
[336738534,1725095240193,-500.0,0.0004,120]
[336738535,1725095240233,-2132.37,0.0004,120]
[336738536,1725095240272,-679.85,0.0004,120]
[336738537,1725095240311,-778.94,0.0004,120]
[336738538,1725095240349,-500.0,0.0004,120]
[336738539,1725095240387,-500.0,0.0004,120]
[336738540,1725095240425,-500.0,0.0004,120]
[336738541,1725095240462,-1655.98,0.0004,120]
[336738542,1725095240498,-641.92,0.0004,120]
[336738543,1725095240538,-500.0,0.0004,120]
[336738544,1725095240580,-721.55,0.0004,120]
[336738545,1725095240619,-500.0,0.0004,120]
[336738546,1725095240659,-500.0,0.0004,120]
[336738547,1725095240697,-1698.11,0.0004,120]
[336738548,1725095240735,-161.1,0.0004,120]
[336738549,1725095240772,-565.51,0.0004,120]
[336738550,1725095240808,-500.0,0.0004,120]
[336738551,1725095240845,-500.0,0.0004,120]
[336738552,1725095240881,-500.0,0.0004,120]
[336738553,1725095240916,-500.0,0.0004,120]
[336738554,1725095240951,-1767.67,0.0004,120]
[336738555,1725095240985,-500.0,0.0004,120]
[336738556,1725095241019,-500.0,0.0004,120]
[336738557,1725095241053,-1166.82,0.0004,120]
[336738558,1725095241087,-500.0,0.0004,120]
[336738559,1725095241121,-500.0,0.0004,120]
[336738560,1725095241155,-500.0,0.0004,120]
[336738561,1725095241190,-500.0,0.0004,120]
[336738562,1725095241225,-500.0,0.0004,120]
[336738563,1725095241260,-500.0,0.0004,120]
[336738564,1725095241295,-781.78,0.0004,120]
[336738565,1725095241331,-549.02,0.0004,120]
[336738566,1725095241365,-577.0981392,0.0004,120]
[336738567,1725095241399,-879.7,0.0004,120]
[336738568,1725095241433,-1120.93,0.0004,120]
[336738569,1725095241468,-500.0,0.0004,120]
[336738570,1725095241767,-500.0,0.0004,120]
[336738571,1725095241809,-2000.0,0.0004,120]
[336738572,1725095241848,-850.45,0.0004,120]
[336738573,1725095241887,-1405.32,0.0004,120]
[336738574,1725095241927,-500.0,0.0004,120]
[336738575,1725095241967,-500.0,0.0004,120]
[336738576,1725095242006,-500.0,0.0004,120]
[336738577,1725095242045,-1626.86,0.0004,120]
[336738578,1725095242086,-500.0,0.0004,120]
[336738579,1725095242125,-500.0,0.0004,120]
[336738580,1725095242164,-500.0,0.0004,120]
[336738581,1725095242201,-500.0,0.0004,120]
[336738582,1725095242240,-3231.8,0.0004,120]
[336738583,1725095242279,-720.15,0.0004,120]
[336738584,1725095242318,-952.01,0.0004,120]
[336738585,1725095242361,-500.0,0.0004,120]
[336738586,1725095242403,-500.0,0.0004,120]
[336738587,1725095242445,-510.44145502,0.0004,120]
[336738588,1725095242486,-500.0,0.0004,120]
[336738589,1725095242528,-1826.94,0.0004,120]
[336738590,1725095242566,-500.0,0.0004,120]
[336738591,1725095242605,-767.31,0.0004,120]
[336738592,1725095242644,-4817.96,0.0004,120]
[336738593,1725095242682,-1468.77,0.0004,120]
[336738594,1725095242719,-500.0,0.0004,120]
[336738595,1725095242754,-679.65,0.0004,120]
[336738596,1725095242790,-500.0,0.0004,120]
[336738597,1725095242825,-833.01,0.0004,120]
[336738598,1725095242859,-536.46,0.0004,120]
[336738599,1725095242893,-500.0,0.0004,120]
[336738600,1725095242926,-500.0,0.0004,120]
[336738601,1725095242958,-500.0,0.0004,120]
[336738602,1725095242992,-1436.9,0.0004,120]
[336738603,1725095243025,-500.0,0.0004,120]
[336738604,1725095243059,-717.79,0.0004,120]
[336738605,1725095243094,-500.0,0.0004,120]
[336738608,1725095243129,-911.59,0.0004,120]
[336738611,1725095243163,-1096.58,0.0004,120]
[336738613,1725095243197,-931.07,0.0004,120]
[336738616,1725095243234,-500.0,0.0004,120]
[336738618,1725095243270,-727.87,0.0004,120]
[336738619,1725095243306,-1205.13,0.0004,120]
[336738620,1725095243341,-3164.47,0.0004,120]
[336738621,1725095243377,-801.74,0.0004,120]
[336738622,1725095243414,-500.0,0.0004,120]
[336738623,1725095243449,-505.92,0.0004,120]
[336738624,1725095243485,-500.0,0.0004,120]
[336738625,1725095243525,-532.71,0.0004,120]
[336738626,1725095243563,-1669.33,0.0004,120]
[336738627,1725095243601,-500.0,0.0004,120]
[336738628,1725095243639,-500.0,0.0004,120]
[336738629,1725095243675,-1066.37,0.0004,120]
[336738630,1725095243713,-622.08,0.0004,120]
[336738631,1725095243751,-1994.12,0.0004,120]
[336738632,1725095243788,-500.0,0.0004,120]
[336738633,1725095243826,-500.0,0.0004,120]
[336738634,1725095243865,-1009.62,0.0004,120]
[336738635,1725095243905,-500.0,0.0004,120]
[336738636,1725095243943,-740.53,0.0004,120]
[336738637,1725095243981,-500.0,0.0004,120]
[336738638,1725095244018,-1230.33,0.0004,120]
[336738639,1725095244057,-1763.31,0.0004,120]
[336738640,1725095244094,-500.0,0.0004,120]
[336738641,1725095244130,-500.0,0.0004,120]
[336738642,1725095244167,-606.13,0.0004,120]
[336738643,1725095244203,-500.0,0.0004,120]
[336738644,1725095244239,-500.0,0.0004,120]
[336738645,1725095244275,-500.0,0.0004,120]
[336738646,1725095244315,-980.1,0.0004,120]
[336738647,1725095244352,-988.12,0.0004,120]
[336738648,1725095244389,-530.81,0.0004,120]
[336738649,1725095244423,-924.86,0.0004,120]
[336738650,1725095244460,-500.0,0.0004,120]
[336738651,1725095244497,-500.0,0.0004,120]
[336738652,1725095244537,-3827.58,0.0004,120]
[336738653,1725095244574,-500.0,0.0004,120]
[336738654,1725095244611,-3646.24,0.0004,120]
[336738655,1725095244649,-708.43,0.0004,120]
[336738656,1725095244687,-500.0,0.0004,120]
[336738657,1725095244725,-4493.23,0.0004,120]
[336738658,1725095244763,-728.19,0.0004,120]
[336738659,1725095244801,-500.0,0.0004,120]
[336738660,1725095244840,-950.06,0.0004,120]
[336738661,1725095244877,-500.0,0.0004,120]
[336738662,1725095244913,-575.64,0.0004,120]
[336738663,1725095244951,-1920.7,0.0004,120]
[336738664,1725095244988,-1812.32,0.0004,120]
[336738665,1725095245028,-500.0,0.0004,120]
[336738666,1725095245064,-500.0,0.0004,120]
[336738667,1725095245102,-1524.42,0.0004,120]
[336738668,1725095245139,-500.0,0.0004,120]
[336738669,1725095245174,-1447.18,0.0004,120]
[336738670,1725095245209,-500.0,0.0004,120]
[336738671,1725095245244,-500.0,0.0004,120]
[336738672,1725095245279,-500.0,0.0004,120]
[336738673,1725095245315,-500.0,0.0004,120]
[336738674,1725095245350,-592.47,0.0004,120]
[336738675,1725095245384,-500.0,0.0004,120]
[336738676,1725095245420,-500.0,0.0004,120]
[336738677,1725095245454,-500.0,0.0004,120]
[336738678,1725095245488,-2064.17,0.0004,120]
[336738679,1725095245527,-1875.57,0.0004,120]
[336738680,1725095245565,-500.0,0.0004,120]
[336738681,1725095245604,-1128.77,0.0004,120]
[336738682,1725095245640,-500.0,0.0004,120]
[336738683,1725095245679,-1217.2,0.0004,120]
[336738684,1725095245716,-180.8659545,0.0004,120]
[336738685,1725095245767,-1083.85,0.0004,120]
[336738686,1725095245811,-500.0,0.0004,120]
[336738687,1725095245857,-500.0,0.0004,120]
[336738688,1725095245904,-1019.1,0.0004,120]
[336738689,1725095245957,-500.0,0.0004,120]
[336738690,1725095246004,-710.75,0.0004,120]
[336738691,1725095246057,-572.16975925,0.0004,120]
[336738692,1725095246107,-500.0,0.0004,120]
[336738695,1725095246155,-517.99,0.0004,120]
[336738698,1725095246203,-500.0,0.0004,120]
[336738701,1725095246256,-675.18,0.0004,120]
[336738703,1725095246303,-500.0,0.0004,120]
[336738704,1725095246351,-500.0,0.0004,120]
[336738705,1725095246398,-1486.52,0.0004,120]
[336738706,1725095246446,-500.0,0.0004,120]
[336738707,1725095246490,-500.0,0.0004,120]
[336738708,1725095246535,-583.94,0.0004,120]
[336738709,1725095246579,-2753.3,0.0004,120]
[336738710,1725095246625,-507.84041717,0.0004,120]
[336738711,1725095246670,-738.68,0.0004,120]
[336738712,1725095246716,-500.0,0.0004,120]
[336738713,1725095246761,-500.0,0.0004,120]
[336738714,1725095246807,-500.0,0.0004,120]
[336738715,1725095246854,-500.0,0.0004,120]
[336738716,1725095246898,-500.0,0.0004,120]
[336738717,1725095246946,-719.07,0.0004,120]
[336738718,1725095246990,-500.0,0.0004,120]
[336738719,1725095247033,-3951.8,0.0004,120]
[336738720,1725095247078,-500.0,0.0004,120]
[336738721,1725095247124,-601.72,0.0004,120]
[336738722,1725095247171,-1031.98,0.0004,120]
[336738723,1725095247216,-500.0,0.0004,120]
[336738724,1725095247263,-1766.78,0.0004,120]
[336738725,1725095247308,-500.0,0.0004,120]
[336738726,1725095247351,-743.24,0.0004,120]
[336738727,1725095247395,-2762.25,0.0004,120]
[336738728,1725095247436,-504.08,0.0004,120]
[336738729,1725095247479,-1073.92,0.0004,120]
[336738730,1725095247522,-500.0,0.0004,120]
[336738731,1725095247566,-596.10228803,0.0004,120]
[336738732,1725095247612,-732.6,0.0004,120]
[336738733,1725095247656,-500.0,0.0004,120]
[336738734,1725095247703,-500.0,0.0004,120]
[336738735,1725095247748,-1147.38,0.0004,120]
[336738736,1725095247791,-610.57,0.0004,120]
[336738737,1725095247832,-500.0,0.0004,120]
[336738738,1725095247871,-500.0,0.0004,120]
[336738739,1725095247912,-1682.94,0.0004,120]
[336738740,1725095247958,-1286.64,0.0004,120]
[336738741,1725095247996,-642.6,0.0004,120]
[336738742,1725095248038,-500.0,0.0004,120]
[336738743,1725095248078,-1185.99,0.0004,120]
[336738744,1725095248123,-500.0,0.0004,120]
[336738745,1725095248163,-1364.66,0.0004,120]
[336738746,1725095248202,-702.01,0.0004,120]
[336738747,1725095248244,-1499.64,0.0004,120]
[336738748,1725095248284,-500.0,0.0004,120]
[336738749,1725095248326,-3311.22,0.0004,120]
[336738750,1725095248367,-500.0,0.0004,120]
[336738751,1725095248409,-647.07,0.0004,120]
[336738752,1725095248449,-1454.66,0.0004,120]
[336738753,1725095248491,-500.0,0.0004,120]
[336738754,1725095248532,-500.0,0.0004,120]
[336738755,1725095248574,-500.0,0.0004,120]
[336738756,1725095248618,-1546.22,0.0004,120]
[336738757,1725095248662,-500.0,0.0004,120]
[336738758,1725095248708,-500.0,0.0004,120]
[336738759,1725095248752,-500.0,0.0004,120]
[336738760,1725095248798,-3608.63,0.0004,120]
[336738761,1725095248844,-500.0,0.0004,120]
[336738762,1725095249459,-500.0,0.0004,120]
[336738763,1725095249527,-5289.61,0.0004,120]
[336738764,1725095249570,-515.25,0.0004,120]
[336738765,1725095249613,-5988.01,0.0004,120]
[336738766,1725095249656,-500.0,0.0004,120]
[336738767,1725095249698,-500.0,0.0004,120]
[336738768,1725095249738,-500.0,0.0004,120]
[336738769,1725095249778,-1293.85,0.0004,120]
[336738770,1725095249817,-500.0,0.0004,120]
[336738771,1725095249861,-5303.97,0.0004,120]
[336738772,1725095249899,-500.0,0.0004,120]
[336738773,1725095249936,-547.81,0.0004,120]
[336738774,1725095249973,-1730.31,0.0004,120]
[336738775,1725095250014,-205.20659189,0.0004,120]
[336738776,1725095250054,-500.0,0.0004,120]
[336738777,1725095250095,-16245.07,0.0004,120]
[336738778,1725095250137,-500.0,0.0004,120]
[336738779,1725095250178,-588.28,0.0004,120]
[336738780,1725095250216,-1587.67,0.0004,120]
[336738781,1725095250257,-500.0,0.0004,120]
[336738782,1725095250293,-500.0,0.0004,120]
[336738783,1725095250333,-500.0,0.0004,120]
[336738784,1725095250370,-712.97,0.0004,120]
[336738785,1725095250407,-1552.16,0.0004,120]
[336738786,1725095250443,-1206.06,0.0004,120]
[336738787,1725095250478,-1133.27,0.0004,120]
[336738788,1725095250514,-500.0,0.0004,120]
[336738789,1725095250552,-500.0,0.0004,120]
[336738790,1725095250590,-993.85,0.0004,120]
[336738791,1725095250627,-500.0,0.0004,120]
[336738792,1725095250663,-1402.54,0.0004,120]
[336738793,1725095250699,-674.44,0.0004,120]
[336738794,1725095250735,-1258.6,0.0004,120]
[336738795,1725095250771,-1030.38,0.0004,120]
[336738796,1725095250806,-602.62,0.0004,120]
[336738797,1725095250840,-510.96,0.0004,120]
[336738798,1725095250874,-917.71,0.0004,120]